fUST/lending_fUST_20250602
["ID","MTS","AMOUNT","RATE_DAILY","PERIOD"]
[363793570,1748873455580,-430.0,0.00017661,2]
[363793571,1748873455592,-430.0,0.00017661,2]
[363793572,1748873455602,-430.0,0.00017661,2]
[363793573,1748873455612,-430.0,0.00017661,2]
[363793574,1748873455623,-430.0,0.00017661,2]
[363793575,1748873455632,-252.33142567,0.00017661,2]
[363793576,1748873455642,-430.0,0.00017661,2]
[363793577,1748873455651,-430.0,0.00017661,2]
[363793578,1748873455661,-451.37203677,0.00017661,2]
[363793579,1748873455671,-430.0,0.00017661,2]
[363793580,1748873455681,-442.23,0.00017661,2]
[363793581,1748873455691,-430.0,0.00017661,2]
[363793582,1748873455700,-609.71,0.00017662,2]
[363793583,1748873455710,-430.0,0.00017662,2]
[363793584,1748873455719,-1500.0,0.00017668,2]
[363793585,1748873455728,-1500.0,0.00017668,2]
[363793586,1748873455739,-2126.85439956,0.00017866,2]
[363793587,1748873455749,-430.0,0.00017931,2]
[363793588,1748873455759,-430.0,0.00017931,2]
[363793589,1748873455769,-471.5,0.00017931,2]
[363793590,1748873455779,-430.0,0.00017931,2]
[363793591,1748873455789,-1226.8,0.00017931,2]
[363793592,1748873455799,-430.0,0.00017931,2]
[363793593,1748873455809,-430.0,0.00017931,2]
[363793594,1748873455819,-430.0,0.00017931,2]
[363793595,1748873455828,-810.65,0.00017931,2]
[363793596,1748873455838,-430.0,0.00017931,2]
[363793597,1748873455848,-1842.24,0.00017931,2]
[363793598,1748873455858,-430.0,0.00017931,2]
[363793599,1748873455869,-430.0,0.00017931,2]
[363793600,1748873455879,-430.0,0.00017931,2]
[363793601,1748873455890,-430.0,0.00017931,2]
[363793602,1748873455900,-1352.46,0.00017931,2]
[363793603,1748873455910,-3239.8,0.00017931,2]
[363793604,1748873455920,-430.0,0.00017933,2]
[363793605,1748873455930,-430.0,0.00017933,2]
[363793606,1748873455939,-430.0,0.00017933,2]
[363793607,1748873455949,-430.0,0.00017933,2]
[363793608,1748873455959,-489.74,0.00017933,2]
[363793609,1748873455969,-457.91,0.00017933,2]
[363793610,1748873455979,-368.36172699,0.00017933,2]
[363793611,1748873455989,-430.0,0.00017933,2]
[363793612,1748873456001,-430.0,0.00017933,2]
[363793613,1748873456011,-430.0,0.00017933,2]
[363793614,1748873456021,-430.0,0.00017933,2]
[363793615,1748873456031,-430.0,0.00017933,2]
[363793616,1748873456041,-430.0,0.00017933,2]
[363793617,1748873456051,-430.0,0.00017933,2]
[363793618,1748873456062,-430.0,0.00017933,2]
[363793619,1748873456072,-430.0,0.00017933,2]
[363793620,1748873456082,-430.0,0.00017933,2]
[363793621,1748873456092,-444.66,0.00017933,2]
[363793622,1748873456103,-534.15,0.00017933,2]
[363793623,1748873456113,-430.0,0.00017933,2]
[363793624,1748873456122,-430.0,0.00017933,2]
[363793625,1748873456132,-430.0,0.00017933,2]
[363793626,1748873456142,-430.0,0.00017934,2]
[363793627,1748873456153,-430.0,0.00017934,2]
[363793628,1748873456165,-430.0,0.00017934,2]
[363793629,1748873456175,-430.0,0.00017934,2]
[363793630,1748873456185,-430.0,0.00017934,2]
[363793631,1748873456195,-430.0,0.00017934,2]
[363793632,1748873456205,-430.0,0.00017934,2]
[363793633,1748873456215,-430.0,0.00017934,2]
[363793634,1748873456224,-430.0,0.00017934,2]
[363793635,1748873456235,-430.0,0.00017934,2]
[363793636,1748873456245,-2302.75,0.00017934,2]
[363793637,1748873456257,-430.0,0.00017934,2]
[363793638,1748873456267,-501.66,0.00017934,2]
[363793639,1748873456278,-430.0,0.00017934,2]
[363793640,1748873456288,-430.0,0.00017934,2]
[363793641,1748873456297,-430.0,0.00017934,2]
[363793642,1748873456307,-624.44,0.00017934,2]
[363793643,1748873456317,-430.0,0.00017934,2]
[363793644,1748873456328,-495.31,0.00017934,2]
[363793645,1748873456338,-430.0,0.00017934,2]
[363793646,1748873456348,-509.61,0.00017934,2]
[363793647,1748873456359,-430.0,0.00017934,2]
[363793648,1748873456369,-430.0,0.00017934,2]
[363793649,1748873456378,-430.0,0.00017934,2]
[363793650,1748873456388,-502.18779629,0.00017934,2]
[363793651,1748873456398,-876.76,0.00017934,2]
[363793652,1748873456408,-430.0,0.00017935,2]
[363793653,1748873456418,-430.0,0.00017935,2]
[363793654,1748873456428,-430.0,0.00017935,2]
[363793655,1748873456438,-430.0,0.00017935,2]
[363793656,1748873456448,-430.0,0.00017935,2]
[363793657,1748873456458,-430.0,0.00017935,2]
[363793658,1748873456468,-430.0,0.00017935,2]
[363793659,1748873456478,-430.0,0.00017935,2]
[363793660,1748873456488,-430.0,0.00017935,2]
[363793661,1748873456501,-330.59963243,0.00017935,2]
[363793662,1748873456510,-430.0,0.00017935,2]
[363793663,1748873456521,-430.0,0.00017935,2]
[363793664,1748873456531,-430.0,0.00017935,2]
[363793665,1748873456541,-321.61168407,0.00017935,2]
[363793666,1748873456550,-430.0,0.00017935,2]
[363793667,1748873456639,-430.0,0.00017935,2]
[363793668,1748873456650,-430.0,0.00017935,2]
[363793669,1748873456661,-430.0,0.00017935,2]
[363793670,1748873456673,-581.46090903,0.00017935,2]
[363793671,1748873456684,-430.0,0.00017935,2]
[363793672,1748873456694,-430.0,0.00017935,2]
[363793673,1748873456704,-430.0,0.00017935,2]
[363793674,1748873456715,-430.0,0.00017935,2]
[363793675,1748873456725,-430.0,0.00017935,2]
[363793676,1748873456734,-1427.94,0.00017935,2]
[363793677,1748873456744,-430.0,0.00017935,2]
[363793678,1748873456755,-430.0,0.00017935,2]
[363793679,1748873456765,-606.47,0.00017935,2]
[363793680,1748873456775,-430.0,0.00017935,2]
[363793681,1748873456785,-430.0,0.00017935,2]
[363793682,1748873456795,-430.0,0.00017935,2]
[363793683,1748873456806,-430.0,0.00017935,2]
[363793684,1748873456816,-430.0,0.00017935,2]
[363793685,1748873456826,-430.0,0.00017935,2]
[363793686,1748873456837,-430.0,0.00017935,2]
[363793687,1748873456847,-430.0,0.00017935,2]
[363793688,1748873456857,-430.0,0.00017935,2]
[363793689,1748873456867,-430.0,0.00017935,2]
[363793690,1748873456877,-430.0,0.00017935,2]
[363793691,1748873456887,-430.0,0.00017935,2]
[363793692,1748873456896,-430.0,0.00017935,2]
[363793693,1748873456907,-475.20072379,0.00017935,2]
[363793694,1748873456918,-430.0,0.00017935,2]
[363793695,1748873456928,-430.0,0.00017935,2]
[363793696,1748873456938,-430.0,0.00017935,2]
[363793697,1748873456949,-439.11841768,0.00017935,2]
[363793698,1748873456959,-430.0,0.00017935,2]
[363793699,1748873456969,-430.0,0.00017935,2]
[363793700,1748873456979,-442.23,0.00017935,2]
[363793701,1748873456990,-430.0,0.00017935,2]
[363793702,1748873457003,-609.71,0.00017936,2]
[363793703,1748873457013,-430.0,0.00017936,2]
[363793704,1748873457023,-706.24687107,0.00017984,2]
[363793705,1748873457033,-420.0,0.00018094,2]
[363793706,1748873457045,-420.0,0.00018094,2]
[363793707,1748873457056,-2126.85439956,0.00018107,2]
[363793708,1748873457066,-1680.0,0.00018185,2]
[363793709,1748873457076,-430.0,0.00018205,2]
[363793710,1748873457087,-297.87610709,0.00018205,2]
[363793711,1748873457099,-471.5,0.00018205,2]
[363793712,1748873457110,-430.0,0.00018205,2]
[363793713,1748873457126,-1226.8,0.00018205,2]
[363793714,1748873457138,-430.0,0.00018205,2]
[363793715,1748873457149,-184.43774827,0.00018205,2]
[363793716,1748873457159,-810.65,0.00018205,2]
[363793717,1748873457169,-430.0,0.00018205,2]
[363793718,1748873457181,-1842.24,0.00018205,2]
[363793719,1748873457192,-430.0,0.00018205,2]
[363793720,1748873457203,-430.0,0.00018205,2]
[363793721,1748873457213,-430.0,0.00018205,2]
[363793722,1748873457224,-430.0,0.00018205,2]
[363793723,1748873457234,-1352.46,0.00018205,2]
[363793724,1748873457244,-3239.8,0.00018205,2]
[363793725,1748873457257,-430.0,0.00018207,2]
[363793726,1748873457267,-430.0,0.00018207,2]
[363793727,1748873457277,-430.0,0.00018207,2]
[363793728,1748873457287,-2712.576526,0.00018207,2]
[363793729,1748873457297,-2712.576526,0.00018207,2]
[363793730,1748873457307,-430.0,0.00018207,2]
[363793731,1748873457318,-489.74,0.00018207,2]
[363793732,1748873457328,-457.91,0.00018207,2]
[363793733,1748873457338,-408.69381437,0.00018207,2]
[363793734,1748873457349,-430.0,0.00018207,2]
[363793735,1748873457359,-430.0,0.00018207,2]
[363793736,1748873457370,-430.0,0.00018207,2]
[363793737,1748873457380,-430.0,0.00018207,2]
[363793738,1748873457390,-430.0,0.00018207,2]
[363793739,1748873457401,-430.0,0.00018207,2]
[363793740,1748873457411,-330.10902446,0.00018207,2]
[363793741,1748873457420,-430.0,0.00018207,2]
[363793742,1748873457430,-430.0,0.00018207,2]
[363793743,1748873457441,-444.66,0.00018207,2]
[363793744,1748873457451,-534.15,0.00018207,2]
[363793745,1748873457460,-430.0,0.00018207,2]
[363793746,1748873457470,-430.0,0.00018207,2]
[363793747,1748873457481,-430.0,0.00018208,2]
[363793748,1748873457490,-430.0,0.00018208,2]
[363793749,1748873457502,-430.0,0.00018208,2]
[363793750,1748873457513,-430.0,0.00018208,2]
[363793751,1748873457523,-430.0,0.00018208,2]
[363793752,1748873457533,-430.0,0.00018208,2]
[363793753,1748873457543,-2302.75,0.00018208,2]
[363793754,1748873457552,-430.0,0.00018208,2]
[363793755,1748873457563,-501.66,0.00018208,2]
[363793756,1748873457572,-430.0,0.00018208,2]
[363793757,1748873457585,-430.0,0.00018208,2]
[363793758,1748873457595,-430.0,0.00018208,2]
[363793759,1748873457605,-624.44,0.00018208,2]
[363793760,1748873457615,-430.0,0.00018208,2]
[363793761,1748873457626,-495.31,0.00018208,2]
[363793762,1748873457635,-430.0,0.00018208,2]
[363793763,1748873457645,-509.61,0.00018208,2]
[363793764,1748873457655,-430.0,0.00018208,2]
[363793765,1748873457666,-430.0,0.00018208,2]
[363793766,1748873457676,-430.0,0.00018208,2]
[363793767,1748873457686,-430.0,0.00018209,2]
[363793768,1748873457695,-430.0,0.00018209,2]
[363793769,1748873457710,-430.0,0.00018209,2]
[363793770,1748873457719,-430.0,0.00018209,2]
[363793771,1748873457729,-430.0,0.00018209,2]
[363793772,1748873457739,-430.0,0.00018209,2]
[363793773,1748873457748,-430.0,0.00018209,2]
[363793774,1748873457759,-430.0,0.00018209,2]
[363793775,1748873457769,-430.0,0.00018209,2]
[363793776,1748873457779,-430.0,0.00018209,2]
[363793777,1748873457788,-466.12578421,0.00018209,2]
[363793778,1748873457798,-430.0,0.00018209,2]
[363793779,1748873457808,-430.0,0.00018209,2]
[363793780,1748873457818,-430.0,0.00018209,2]
[363793781,1748873457828,-1427.94,0.00018209,2]
[363793782,1748873457837,-378.85,0.00018209,2]
[363793783,1748873457850,-606.47,0.00018209,2]
[363793784,1748873457859,-430.0,0.00018209,2]
[363793785,1748873457869,-430.0,0.00018209,2]
[363793786,1748873457879,-430.0,0.00018209,2]
[363793787,1748873457889,-430.0,0.00018209,2]
[363793788,1748873457898,-430.0,0.00018209,2]
[363793789,1748873457908,-430.0,0.00018209,2]
[363793790,1748873457918,-430.0,0.00018209,2]
[363793791,1748873457928,-430.0,0.00018209,2]
[363793792,1748873457938,-430.0,0.00018209,2]
[363793793,1748873457948,-430.0,0.00018209,2]
[363793794,1748873457958,-430.0,0.00018209,2]
[363793795,1748873457968,-430.0,0.00018209,2]
[363793796,1748873457978,-430.0,0.00018209,2]
[363793797,1748873457988,-430.0,0.00018209,2]
[363793798,1748873457998,-430.0,0.00018209,2]
[363793799,1748873458011,-430.0,0.00018209,2]
[363793800,1748873458021,-430.0,0.00018209,2]
[363793801,1748873458031,-442.23,0.00018209,2]
[363793802,1748873458041,-430.0,0.00018209,2]
[363793803,1748873458052,-609.71,0.0001821,2]
[363793804,1748873458061,-430.0,0.0001821,2]
[363793805,1748873458071,-1000.0,0.0001821,7]
[363793806,1748873458162,-1000.0,0.00018216,2]
[363793807,1748873458173,-2126.85439956,0.00018348,2]
[363793808,1748873458183,-430.0,0.00018479,2]
[363793809,1748873458193,-471.5,0.00018479,2]
[363793810,1748873458203,-430.0,0.00018479,2]
[363793811,1748873458214,-1226.8,0.00018479,2]
[363793812,1748873458224,-430.0,0.00018479,2]
[363793813,1748873458235,-810.65,0.00018479,2]
[363793814,1748873458245,-1842.24,0.00018479,2]
[363793815,1748873458257,-509.34,0.00018479,2]
[363793816,1748873458268,-549.39,0.00018479,2]
[363793817,1748873458278,-430.0,0.00018479,2]
[363793818,1748873458288,-430.0,0.00018479,2]
[363793819,1748873458298,-1352.46,0.00018479,2]
[363793820,1748873458308,-3239.8,0.00018479,2]
[363793821,1748873458318,-430.0,0.00018481,2]
[363793822,1748873458329,-430.0,0.00018481,2]
[363793823,1748873458339,-430.0,0.00018481,2]
[363793824,1748873458349,-430.0,0.00018481,2]
[363793825,1748873458359,-489.74,0.00018481,2]
[363793826,1748873458369,-457.91,0.00018481,2]
[363793827,1748873458379,-430.0,0.00018481,2]
[363793828,1748873458390,-430.0,0.00018481,2]
[363793829,1748873458400,-430.0,0.00018481,2]
[363793830,1748873458411,-430.0,0.00018481,2]
[363793831,1748873458421,-430.0,0.00018481,2]
[363793832,1748873458431,-430.0,0.00018481,2]
[363793833,1748873458440,-430.0,0.00018481,2]
[363793834,1748873458450,-430.0,0.00018481,2]
[363793835,1748873458461,-444.66,0.00018481,2]
[363793836,1748873458471,-534.15,0.00018481,2]
[363793837,1748873458481,-430.0,0.00018481,2]
[363793838,1748873458492,-430.0,0.00018482,2]
[363793839,1748873458505,-430.0,0.00018482,2]
[363793840,1748873458515,-430.0,0.00018482,2]
[363793841,1748873458526,-430.0,0.00018482,2]
[363793842,1748873458535,-430.0,0.00018482,2]
[363793843,1748873458545,-430.0,0.00018482,2]
[363793844,1748873458554,-2302.75,0.00018482,2]
[363793845,1748873458564,-430.0,0.00018482,2]
[363793846,1748873458574,-501.66,0.00018482,2]
[363793847,1748873458589,-430.0,0.00018482,2]
[363793848,1748873458599,-430.0,0.00018482,2]
[363793849,1748873458609,-624.44,0.00018482,2]
[363793850,1748873458619,-430.0,0.00018482,2]
[363793851,1748873458631,-495.31,0.00018482,2]
[363793852,1748873458640,-430.0,0.00018482,2]
[363793853,1748873458650,-509.61,0.00018482,2]
[363793854,1748873458660,-430.0,0.00018482,2]
[363793855,1748873458670,-430.0,0.00018482,2]
[363793856,1748873458680,-430.0,0.00018482,2]
[363793857,1748873458689,-430.0,0.00018483,2]
[363793858,1748873458698,-304.24085666,0.00018483,2]
[363793859,1748873458707,-430.0,0.00018483,2]
[363793860,1748873458717,-430.0,0.00018483,2]
[363793861,1748873458727,-430.0,0.00018483,2]
[363793862,1748873458736,-430.0,0.00018483,2]
[363793863,1748873458747,-430.0,0.00018483,2]
[363793864,1748873458759,-430.0,0.00018483,2]
[363793865,1748873458768,-430.0,0.00018483,2]
[363793866,1748873458778,-430.0,0.00018483,2]
[363793867,1748873458788,-430.0,0.00018483,2]
[363793868,1748873458798,-1427.94,0.00018483,2]
[363793869,1748873458808,-606.47,0.00018483,2]
[363793870,1748873458817,-430.0,0.00018483,2]
[363793871,1748873458827,-430.0,0.00018483,2]
[363793872,1748873458837,-430.0,0.00018483,2]
[363793873,1748873458847,-560.00078376,0.00018483,2]
[363793874,1748873458857,-430.0,0.00018483,2]
[363793875,1748873458867,-430.0,0.00018483,2]
[363793876,1748873458877,-430.0,0.00018483,2]
[363793877,1748873458887,-430.0,0.00018483,2]
[363793878,1748873458898,-430.0,0.00018483,2]
[363793879,1748873458907,-541.02759586,0.00018483,2]
[363793880,1748873458917,-430.0,0.00018483,2]
[363793881,1748873458927,-430.0,0.00018483,2]
[363793882,1748873458937,-430.0,0.00018483,2]
[363793883,1748873458948,-430.0,0.00018483,2]
[363793884,1748873458958,-430.0,0.00018483,2]
[363793885,1748873458968,-430.0,0.00018483,2]
[363793886,1748873458978,-442.23,0.00018483,2]
[363793887,1748873458988,-430.0,0.00018483,2]
[363793888,1748873458999,-609.71,0.00018484,2]
[363793889,1748873459013,-430.0,0.00018484,2]
[363793890,1748873459023,-706.24687107,0.0001849,2]
[363793891,1748873459033,-160.0,0.00018513,2]
[363793892,1748873459043,-160.0,0.00018517,2]
[363793893,1748873459053,-212.83419937,0.00018517,2]
[363793894,1748873459062,-229.39799938,0.00018517,2]
[363793895,1748873459072,-423.56953423,0.00018517,2]
[363793896,1748873459082,-160.0,0.00018517,2]
[363793897,1748873459092,-160.0,0.00018517,2]
[363793898,1748873459102,-842.5625,0.00018517,2]
[363793899,1748873459112,-12668.79298183,0.00018522,2]
[363793900,1748873459122,-314.262703,0.00018522,2]
[363793901,1748873459132,-314.262703,0.00018522,2]
[363793902,1748873459143,-2126.85439956,0.0001859,2]
[363793903,1748873459152,-430.0,0.00018753,2]
[363793904,1748873459163,-471.5,0.00018753,2]
[363793905,1748873459173,-430.0,0.00018753,2]
[363793906,1748873459183,-1226.8,0.00018753,2]
[363793907,1748873459194,-430.0,0.00018753,2]
[363793908,1748873459204,-810.65,0.00018753,2]
[363793909,1748873459213,-1842.24,0.00018753,2]
[363793910,1748873459223,-430.0,0.00018753,2]
[363793911,1748873459233,-1352.46,0.00018753,2]
[363793912,1748873459243,-3239.8,0.00018753,2]
[363793913,1748873459257,-430.0,0.00018755,2]
[363793914,1748873459269,-430.0,0.00018755,2]
[363793915,1748873459278,-430.0,0.00018755,2]
[363793916,1748873459288,-430.0,0.00018755,2]
[363793917,1748873459298,-489.74,0.00018755,2]
[363793918,1748873459308,-457.91,0.00018755,2]
[363793919,1748873459318,-430.0,0.00018755,2]
[363793920,1748873459329,-430.0,0.00018755,2]
[363793921,1748873459339,-430.0,0.00018755,2]
[363793922,1748873459349,-430.0,0.00018755,2]
[363793923,1748873459359,-430.0,0.00018755,2]
[363793924,1748873459368,-430.0,0.00018755,2]
[363793925,1748873459378,-444.66,0.00018755,2]
[363793926,1748873459388,-534.15,0.00018755,2]
[363793927,1748873459398,-430.0,0.00018755,2]
[363793928,1748873459408,-317.87427809,0.00018756,2]
[363793929,1748873459422,-430.0,0.00018756,2]
[363793930,1748873459432,-430.0,0.00018756,2]
[363793931,1748873459442,-430.0,0.00018756,2]
[363793932,1748873459456,-430.0,0.00018756,2]
[363793933,1748873459552,-2302.75,0.00018756,2]
[363793934,1748873459564,-430.0,0.00018756,2]
[363793935,1748873459574,-501.66,0.00018756,2]
[363793936,1748873459584,-430.0,0.00018756,2]
[363793937,1748873459600,-430.0,0.00018756,2]
[363793938,1748873459610,-624.44,0.00018756,2]
[363793939,1748873459619,-430.0,0.00018756,2]
[363793940,1748873459630,-495.31,0.00018756,2]
[363793941,1748873459640,-509.61,0.00018756,2]
[363793942,1748873459650,-430.0,0.00018756,2]
[363793943,1748873459659,-500.0,0.00018756,2]
[363793944,1748873459669,-430.0,0.00018756,2]
[363793945,1748873459678,-430.0,0.00018756,2]
[363793946,1748873459688,-430.0,0.00018757,2]
[363793947,1748873459698,-403.72934059,0.00018757,2]
[363793948,1748873459708,-430.0,0.00018757,2]
[363793949,1748873459718,-430.0,0.00018757,2]
[363793950,1748873459728,-430.0,0.00018757,2]
[363793951,1748873459738,-430.0,0.00018757,2]
[363793952,1748873459749,-430.0,0.00018757,2]
[363793953,1748873459760,-430.0,0.00018757,2]
[363793954,1748873459770,-430.0,0.00018757,2]
[363793955,1748873459779,-1427.94,0.00018757,2]
[363793956,1748873459790,-606.47,0.00018757,2]
[363793957,1748873459801,-430.0,0.00018757,2]
[363793958,1748873459816,-430.0,0.00018757,2]
[363793959,1748873459828,-430.0,0.00018757,2]
[363793960,1748873459838,-430.0,0.00018757,2]
[363793961,1748873459847,-430.0,0.00018757,2]
[363793962,1748873459857,-430.0,0.00018757,2]
[363793963,1748873459867,-430.0,0.00018757,2]
[363793964,1748873459877,-430.0,0.00018757,2]
[363793965,1748873459886,-430.0,0.00018757,2]
[363793966,1748873459895,-430.0,0.00018757,2]
[363793967,1748873459905,-430.0,0.00018757,2]
[363793968,1748873459915,-430.0,0.00018757,2]
[363793969,1748873459925,-442.23,0.00018757,2]
[363793970,1748873459935,-430.0,0.00018757,2]
[363793971,1748873459946,-609.71,0.00018758,2]
[363793972,1748873459955,-430.0,0.00018758,2]
[363793973,1748873459965,-152.985598,0.00018758,2]
[363793974,1748873459975,-2126.85439956,0.00018831,2]
[363793975,1748873459984,-3836.83268083,0.00018874,2]
[363793976,1748873459994,-471.5,0.00019027,2]
[363793977,1748873460006,-430.0,0.00019027,2]
[363793978,1748873460016,-1226.8,0.00019027,2]
[363793979,1748873460026,-430.0,0.00019027,2]
[363793980,1748873460036,-810.65,0.00019027,2]
[363793981,1748873460047,-1842.24,0.00019027,2]
[363793982,1748873460057,-430.0,0.00019027,2]
[363793983,1748873460067,-1352.46,0.00019027,2]
[363793984,1748873460077,-3239.8,0.00019027,2]
[363793985,1748873460087,-430.0,0.00019029,2]
[363793986,1748873460097,-430.0,0.00019029,2]
[363793987,1748873460108,-430.0,0.00019029,2]
[363793988,1748873460118,-489.74,0.00019029,2]
[363793989,1748873460128,-457.91,0.00019029,2]
[363793990,1748873460138,-430.0,0.00019029,2]
[363793991,1748873460148,-430.0,0.00019029,2]
[363793992,1748873460158,-430.0,0.00019029,2]
[363793993,1748873460168,-430.0,0.00019029,2]
[363793994,1748873460178,-444.66,0.00019029,2]
[363793995,1748873460188,-534.15,0.00019029,2]
[363793996,1748873460198,-430.0,0.00019029,2]
[363793997,1748873460208,-430.0,0.0001903,2]
[363793998,1748873460218,-430.0,0.0001903,2]
[363793999,1748873460228,-430.0,0.0001903,2]
[363794000,1748873460238,-2302.75,0.0001903,2]
[363794001,1748873460249,-430.0,0.0001903,2]
[363794002,1748873460261,-501.66,0.0001903,2]
[363794003,1748873460272,-430.0,0.0001903,2]
[363794004,1748873460283,-430.0,0.0001903,2]
[363794005,1748873460293,-624.44,0.0001903,2]
[363794006,1748873460303,-430.0,0.0001903,2]
[363794007,1748873460313,-495.31,0.0001903,2]
[363794008,1748873460324,-509.61,0.0001903,2]
[363794009,1748873460334,-430.0,0.0001903,2]
[363794010,1748873460344,-430.0,0.0001903,2]
[363794011,1748873460354,-430.0,0.0001903,2]
[363794012,1748873460364,-430.0,0.00019031,2]
[363794013,1748873460375,-430.0,0.00019031,2]
[363794014,1748873460384,-393.24013304,0.00019031,2]
[363794015,1748873460395,-430.0,0.00019031,2]
[363794016,1748873460406,-430.0,0.00019031,2]
[363794017,1748873460416,-1427.94,0.00019031,2]
[363794018,1748873460426,-606.47,0.00019031,2]
[363794019,1748873460436,-430.0,0.00019031,2]
[363794020,1748873460446,-430.0,0.00019031,2]
[363794021,1748873460455,-430.0,0.00019031,2]
[363794022,1748873460465,-430.0,0.00019031,2]
[363794023,1748873460474,-430.0,0.00019031,2]
[363794024,1748873460485,-430.0,0.00019031,2]
[363794025,1748873460494,-430.0,0.00019031,2]
[363794026,1748873460507,-430.0,0.00019031,2]
[363794027,1748873460516,-307.29747007,0.00019031,2]
[363794028,1748873460526,-430.0,0.00019031,2]
[363794029,1748873460536,-442.23,0.00019031,2]
[363794030,1748873460545,-430.0,0.00019031,2]
[363794031,1748873460555,-609.71,0.00019032,2]
[363794032,1748873460565,-430.0,0.00019032,2]
[363794033,1748873460575,-1400.0,0.00019033,2]
[363794034,1748873460589,-2126.85439956,0.00019072,2]
[363794035,1748873460599,-500.0,0.000191,2]
[363794036,1748873460609,-500.0,0.00019145,2]
[363794037,1748873460618,-600.0,0.00019145,2]
[363794038,1748873460628,-500.0,0.00019145,2]
[363794039,1748873460638,-500.0,0.00019145,2]
[363794040,1748873460647,-546.72605437,0.00019145,2]
[363794041,1748873460658,-500.0,0.00019145,2]
[363794042,1748873460667,-205.49080572,0.00019145,2]
[363794043,1748873460678,-500.0,0.00019145,2]
[363794044,1748873460688,-500.0,0.00019145,2]
[363794045,1748873460697,-500.0,0.00019145,2]
[363794046,1748873460707,-500.0,0.00019145,2]
[363794047,1748873460716,-500.0,0.00019145,2]
[363794048,1748873460726,-500.0,0.00019145,2]
[363794049,1748873460735,-500.0,0.00019145,2]
[363794050,1748873460744,-500.0,0.00019145,2]
[363794051,1748873460826,-500.0,0.00019178,2]
[363794052,1748873460837,-500.0,0.00019178,2]
[363794053,1748873460847,-500.0,0.00019178,2]
[363794054,1748873460856,-500.0,0.00019178,2]
[363794055,1748873460866,-500.0,0.00019178,2]
[363794056,1748873460876,-500.0,0.00019178,2]
[363794057,1748873460886,-500.0,0.00019178,2]
[363794058,1748873460897,-262.72293613,0.00019178,2]
[363794059,1748873460907,-500.0,0.00019178,2]
[363794060,1748873460917,-500.0,0.00019178,2]
[363794061,1748873460927,-533.90605529,0.00019178,2]
[363794062,1748873460936,-500.0,0.00019178,2]
[363794063,1748873460946,-500.0,0.00019178,2]
[363794064,1748873460956,-151.0,0.00019178,2]
[363794065,1748873460965,-396.795622,0.00019178,2]
[363794066,1748873460976,-156.587,0.00019233,2]
[363794067,1748873460987,-162.380719,0.00019288,2]
[363794068,1748873460996,-471.5,0.00019301,2]
[363794069,1748873461009,-430.0,0.00019301,2]